{"text_format":"3","workbook":"xlsx","n_sheets":5,"sheets":["Info","Deckblatt","eigenesHaus","gemietetesHaus","Tabelle1"],"not_rendered":{"images":17,"macros":1,"defined_names":13,"comments":3},"read":"whole","date_system":"1900"}

{"sheet":"Info","index":0,"n_rows":42,"n_cols":3,"rows_kept":42,"merged":[[4,2,4,12],[6,2,7,12],[10,2,13,12],[16,2,17,12],[18,2,20,12],[22,2,25,12],[26,2,29,12],[30,2,31,12],[33,2,35,12],[37,2,39,12],[41,2,44,12]]}
[]
[]
[]
[]
[null,null,"Häusliches Arbeitszimmer"]
[]
[null,null,"Diese Schnellberechnung unterstützt Sie bei der Ermittlung der anzusetzenden Werbungskosten für ein häusliches Arbeitszimmer."]
[]
[]
[]
[null,null,"Zellen mit einem roten Dreieck sind mit Kommentaren versehen. Führen Sie den Mauszeiger auf die Zelle um den Kommentar sichtbar zu machen.\nPrüfen Sie bei Bedarf die Anzeige der Kommentare:\n                   Extras | Optionen | Ansicht | Kommentare"]
[]
[]
[]
[]
[]
[null,null,"DATEV ist bemüht, in den Schnellberechnungen stets aktuelle Informationen bereitzustellen und zu ändern oder diese bei Bedarf zu ergänzen. "]
[]
[null,null,"Außerhalb unseres Einflussbereiches sind Veränderungen im Verhalten von Microsoft Office-Produkten, welche mit jedem beliebigen Microsoft-Update/Service-Release/Office-Add-In oder neuem Programm auftreten können."]
[]
[]
[]
[null,null,"Bitte beachten Sie, dass die Schnellberechnung eine Hilfestellung bei der mandantenbezogenen Beratung darstellt. Sie dient dazu, Änderungen in einer konkreten Fragestellung mittels überschlägiger Berechnung auch unter Verwendung von Pauschalwerten und vereinfachenden Annahmen transparent zu machen, um ein Gefühl für die Zahlen/Werte zu erlangen."]
[]
[]
[]
[null,null,"Es erfolgt keine Definitivberechnung (auch auf Grund der Restriktionen in den Microsoft Office-Produkten, z.B. fehlende Rechengenauigkeit). Eine exakte Berechnung unter Berücksichtigung der relevanten Einflussbedingungen kann in vielen Fällen mit den entsprechenden Vollprodukten der Wirtschaftsberatung erfolgen."]
[]
[]
[]
[null,null,"Für die Nutzung der Excel-Schnellberechnung werden grundlegende Kenntnisse in den Microsoft Office-Produkten Microsoft Excel und Microsoft Word vorausgesetzt."]
[]
[]
[null,null,"Bei externen Seiten, auf die die DATEV direkt oder indirekt in ihren Programmen \nverweist (Hyperlinks), wird jede Gewähr, Haftung oder Garantie für die Korrektheit, \nAktualität und Vollständigkeit der Inhalte dieser Seiten ausgeschlossen. "]
[]
[]
[]
[null,null,"Die DATEV \nhaftet nicht für direkte oder indirekte Schäden, die aus der Nutzung der \nangebotenen Informationen externer Seiten entstehen."]
[]
[]
[]
[null,null,"Alle Rechte der DATEV bleiben vorbehalten. Vervielfältigungen, Verbreitungen, \nBearbeitungen, andere Umgestaltungen und sonstige Verwertungen sind nur im \nRahmen der hierfür geltenden Bestimmungen oder auf Grund gesonderter \nvertraglicher Vereinbarungen gestattet."]

{"sheet":"Deckblatt","index":1,"n_rows":48,"n_cols":18,"rows_kept":48,"merged":[[4,2,7,4],[4,5,7,13],[9,1,14,13],[19,1,24,13],[27,6,27,10],[29,6,29,10],[31,6,31,10],[34,6,34,10],[36,6,36,10],[38,6,38,10],[41,6,41,10],[44,6,44,10],[47,6,47,10]]}
[]
[]
[]
[]
[null,null,"Zukunft gestalten.\nGemeinsam.",null,null,"Häusliches Arbeitszimmer"]
[{"$nulls":17},"eigenen Haus / eigener Wohnung"]
[{"$nulls":17},"gemieteten Haus / gemieteter Wohnung"]
[]
[]
[null,"Diese Schnellberechnung unterstützt Sie bei der Ermittlung der anzusetzenden Werbungskosten für ein häusliches Arbeitszimmer ab dem Veranlagungszeitraum 2007.\n"]
{"$rows_empty":17}
[{"$nulls":5},"Auswertung für"]
[]
[]
[]
[]
[]
[]
[{"$nulls":5},"Erstellt von"]
[]
[]
[]
[]
[]
[]
[{"$nulls":5},"Erstellt am"]
[]
[]
[{"$nulls":5},"Arbeitszimmer im ","eigenen Haus / eigener Wohnung"]
[]
[]
[{"$nulls":5},"Kostenaufstellung ab dem Jahr",2024]

{"sheet":"eigenesHaus","index":2,"n_rows":57,"n_cols":43,"rows_kept":57}
[{"$nulls":42},"Ja"]
[{"$nulls":42},"Nein"]
[]
[]
[null,"Arbeitszimmer im eigenen Haus/eigener Wohnung"]
[{"$nulls":5},{"$f":"Deckblatt!G48","v":2024},{"$f":"F6+1","v":2025},2026,2027,2028,2029,2030]
[null,null,"Allgemeine Angaben"]
[{"$nulls":4},"Wohnfläche gesamt in m2"]
[{"$nulls":4},"Fläche des Arbeitszimmers in m2"]
[{"$nulls":4},"Anteil des Arbeitszimmers in %",{"$f":"IF(AND(ISNUMBER(F8),ISNUMBER(F9)),IF(F9>F8,\"fehlerhafte Eingabe\",F9/F8*100),0)","v":{"v":0,"d":"0.00"}},{"$f":"IF(AND(ISNUMBER(G8),ISNUMBER(G9)),IF(G9>G8,\"fehlerhafte Eingabe\",G9/G8*100),0)","v":{"v":0,"d":"0.00"}},{"v":0,"d":"0.00"},{"v":0,"d":"0.00"},{"v":0,"d":"0.00"},{"v":0,"d":"0.00"},{"v":0,"d":"0.00"}]
[{"$nulls":4},"Das Arbeitszimmer bildet den Mittelpunkt","Ja","Ja","Ja","Ja","Ja","Ja","Ja"]
[{"$nulls":4},"es steht kein anderer Arbeitsplatz zur Verfügung","Ja","Nein","Nein","Nein","Nein","Nein","Nein"]
[]
[null,null,"Voll abzugsfähige Kosten"]
[{"$nulls":4},"Reinigungskosten"]
[{"$nulls":4},"Renovierungskosten"]
[{"$nulls":4},"Aufwendungen für GWG"]
[{"$nulls":4},"AfA für Ausstattungsgegenstände"]
[{"$nulls":4},"Sonstige voll abzugsfähige Kosten"]
[{"$nulls":3},"=","Summe der voll abzugsfähigen Kosten",{"$f":"SUM(F15:F19)","v":{"v":0,"d":"0.00"}},{"v":0,"d":"0.00"},{"v":0,"d":"0.00"},{"v":0,"d":"0.00"},{"v":0,"d":"0.00"},{"v":0,"d":"0.00"},{"v":0,"d":"0.00"}]
[]
[null,null,"Anteilig abzugsfähige Kosten"]
[{"$nulls":4},"Schuldzinsen"]
[{"$nulls":4},"Grundsteuer"]
[{"$nulls":4},"Gebäude-AfA"]
[{"$nulls":4},"Reparaturaufwendungen"]
[{"$nulls":4},"Feuerversicherung"]
[{"$nulls":4},"Hausratversicherung"]
[{"$nulls":4},"Haushaftpflichtversicherung"]
[{"$nulls":4},"Glasversicherung"]
[{"$nulls":4},"Leitungswasser-, Sturm- und Hagelversicherung"]
[{"$nulls":4},"Schornsteinfeger"]
[{"$nulls":4},"Straßenreinigung"]
[{"$nulls":4},"Müllabfuhr"]
[{"$nulls":4},"Entwässerung, Abwasser, Kanalgebühren"]
[{"$nulls":4},"Wassergeld"]
[{"$nulls":4},"Strom"]
[{"$nulls":4},"Heizung"]
[{"$nulls":4},"Reinigungskosten"]
[{"$nulls":4},"Aufwendungen für die Ausstattung des Zimmers"]
[{"$nulls":4},"Sonstige anteilig abzugsfähige Kosten"]
[{"$nulls":3},"=","Summe der anteilig abzugsfähigen Kosten",{"$f":"SUM(F23:F41)","v":{"v":0,"d":"0.00"}},{"v":0,"d":"0.00"},{"v":0,"d":"0.00"},{"v":0,"d":"0.00"},{"v":0,"d":"0.00"},{"v":0,"d":"0.00"},{"v":0,"d":"0.00"}]
[{"$nulls":3},"=","darauf entfallen auf das Arbeitszimmer",{"$f":"IF(AND(ISNUMBER(F8),ISNUMBER(F9)),F42*F9/F8,0)","v":{"v":0,"d":"0.00"}},{"v":0,"d":"0.00"},{"v":0,"d":"0.00"},{"v":0,"d":"0.00"},{"v":0,"d":"0.00"},{"v":0,"d":"0.00"},{"v":0,"d":"0.00"}]
[]
[null,null,"Aufwendungen für Arbeitsmittel"]
[{"$nulls":4},"Aufwendungen für GWG's"]
[{"$nulls":4},"AfA für Arbeitsmittel"]
[{"$nulls":4},"Sonstige Aufwendungen für Arbeitsmittel"]
[{"$nulls":3},"=","Summe der Aufwendungen für Arbeitsmittel",{"$f":"SUM(F46:F48)","v":{"v":0,"d":"0.00"}},{"v":0,"d":"0.00"},{"v":0,"d":"0.00"},{"v":0,"d":"0.00"},{"v":0,"d":"0.00"},{"v":0,"d":"0.00"},{"v":0,"d":"0.00"}]
[]
[null,null,"Anzusetzende Werbungskosten"]
[{"$nulls":4},"Voll abzugsfähige Kosten",{"$f":"F20","v":{"v":0,"d":"0.00"}},{"v":0,"d":"0.00"},{"v":0,"d":"0.00"},{"v":0,"d":"0.00"},{"v":0,"d":"0.00"},{"v":0,"d":"0.00"},{"v":0,"d":"0.00"}]
[{"$nulls":4},"Anteilig abzugsfähige Kosten",{"$f":"F43","v":{"v":0,"d":"0.00"}},{"v":0,"d":"0.00"},{"v":0,"d":"0.00"},{"v":0,"d":"0.00"},{"v":0,"d":"0.00"},{"v":0,"d":"0.00"},{"v":0,"d":"0.00"}]
[{"$nulls":3},"./.","nicht abziehbarer Anteil",{"$f":"IF(F11=\"Ja\",0,IF(F12=\"Ja\",IF((F52+F53)>1250,(F52+F53)-1250,0),F52+F53))","v":{"v":0,"d":"0.00"}},{"v":0,"d":"0.00"},{"v":0,"d":"0.00"},{"v":0,"d":"0.00"},{"v":0,"d":"0.00"},{"v":0,"d":"0.00"},{"v":0,"d":"0.00"}]
[{"$nulls":3},"=","abziehbarer Anteil",{"$f":"F52+F53-F54","v":{"v":0,"d":"0.00"}},{"v":0,"d":"0.00"},{"v":0,"d":"0.00"},{"v":0,"d":"0.00"},{"v":0,"d":"0.00"},{"v":0,"d":"0.00"},{"v":0,"d":"0.00"}]
[{"$nulls":3},"+",{"$f":"C45","v":"Aufwendungen für Arbeitsmittel"},{"$f":"F49","v":{"v":0,"d":"0.00"}},{"v":0,"d":"0.00"},{"v":0,"d":"0.00"},{"v":0,"d":"0.00"},{"v":0,"d":"0.00"},{"v":0,"d":"0.00"},{"v":0,"d":"0.00"}]
[{"$nulls":3},"=","Anzusetzende Werbungskosten",{"$f":"F55+F56","v":{"v":0,"d":"0.00"}},{"v":0,"d":"0.00"},{"v":0,"d":"0.00"},{"v":0,"d":"0.00"},{"v":0,"d":"0.00"},{"v":0,"d":"0.00"},{"v":0,"d":"0.00"}]

{"sheet":"gemietetesHaus","index":3,"n_rows":50,"n_cols":43,"rows_kept":50}
[{"$nulls":42},"Ja"]
[{"$nulls":42},"Nein"]
[]
[]
[null,"Arbeitszimmer im gemieteten Haus/gemieteter Wohnung"]
[{"$nulls":5},{"$f":"Deckblatt!G48","v":2024},{"$f":"F6+1","v":2025},2026,2027,2028,2029,2030]
[null,null,"Allgemeine Angaben"]
[{"$nulls":4},"Wohnfläche gesamt in m2"]
[{"$nulls":4},"Fläche des Arbeitszimmers in m2"]
[{"$nulls":4},"Anteil des Arbeitszimmers in %",{"$f":"IF(AND(ISNUMBER(F8),ISNUMBER(F9)),IF(F9>F8,\"fehlerhafte Eingabe\",F9/F8*100),0)","v":{"v":0,"d":"0.00"}},{"$f":"IF(AND(ISNUMBER(G8),ISNUMBER(G9)),IF(G9>G8,\"fehlerhafte Eingabe\",G9/G8*100),0)","v":{"v":0,"d":"0.00"}},{"v":0,"d":"0.00"},{"v":0,"d":"0.00"},{"v":0,"d":"0.00"},{"v":0,"d":"0.00"},{"v":0,"d":"0.00"}]
[{"$nulls":4},"Das Arbeitszimmer bildet den Mittelpunkt","Ja","Ja","Ja","Ja","Ja","Ja","Ja"]
[{"$nulls":4},"es steht kein anderer Arbeitsplatz zur Verfügung","Nein","Nein","Nein","Nein","Nein","Nein","Nein"]
[]
[null,null,"Voll abzugsfähige Kosten"]
[{"$nulls":4},"Reinigungskosten"]
[{"$nulls":4},"Renovierungskosten"]
[{"$nulls":4},"Aufwendungen für GWG"]
[{"$nulls":4},"AfA für Ausstattungsgegenstände"]
[{"$nulls":4},"Sonstige voll abzugsfähige Kosten"]
[{"$nulls":3},"=","Summe der voll abzugsfähigen Kosten",{"$f":"SUM(F15:F19)","v":{"v":0,"d":"0.00"}},{"v":0,"d":"0.00"},{"v":0,"d":"0.00"},{"v":0,"d":"0.00"},{"v":0,"d":"0.00"},{"v":0,"d":"0.00"},{"v":0,"d":"0.00"}]
[]
[null,null,"Anteilig abzugsfähige Kosten"]
[{"$nulls":4},"Miete"]
[{"$nulls":4},"Mietnebenkosten"]
[{"$nulls":4},"Versicherungen"]
[{"$nulls":4},"Strom"]
[{"$nulls":4},"Heizung"]
[{"$nulls":4},"Reinigungskosten"]
[{"$nulls":4},"Grundsteuer"]
[{"$nulls":4},"Müllabfuhr"]
[{"$nulls":4},"Reparaturen"]
[{"$nulls":4},"Schornsteinreinigung"]
[{"$nulls":4},"Aufwendungen für die Ausstattung des Zimmers"]
[{"$nulls":4},"Sonstige anteilig abzugsfähige Kosten"]
[{"$nulls":3},"=","Summe der anteilig abzugsfähigen Kosten",{"$f":"SUM(F23:F34)","v":{"v":0,"d":"0.00"}},{"v":0,"d":"0.00"},{"v":0,"d":"0.00"},{"v":0,"d":"0.00"},{"v":0,"d":"0.00"},{"v":0,"d":"0.00"},{"v":0,"d":"0.00"}]
[{"$nulls":3},"=","darauf entfallen auf das Arbeitszimmer",{"$f":"IF(AND(ISNUMBER(F8),ISNUMBER(F9)),F35*F9/F8,0)","v":{"v":0,"d":"0.00"}},{"$f":"IF(AND(ISNUMBER(G8),ISNUMBER(G9)),G35*G9/G8,0)","v":{"v":0,"d":"0.00"}},{"v":0,"d":"0.00"},{"v":0,"d":"0.00"},{"v":0,"d":"0.00"},{"v":0,"d":"0.00"},{"v":0,"d":"0.00"}]
[]
[null,null,"Aufwendungen für Arbeitsmittel"]
[{"$nulls":4},"Aufwendungen für GWG's"]
[{"$nulls":4},"AfA für Arbeitsmittel"]
[{"$nulls":4},"Sonstige Aufwendungen für Arbeitsmittel"]
[{"$nulls":3},"=","Summe der Aufwendungen für Arbeitsmittel",{"$f":"SUM(F39:F41)","v":{"v":0,"d":"0.00"}},{"v":0,"d":"0.00"},{"v":0,"d":"0.00"},{"v":0,"d":"0.00"},{"v":0,"d":"0.00"},{"v":0,"d":"0.00"},{"v":0,"d":"0.00"}]
[]
[null,null,"Anzusetzende Werbungskosten"]
[{"$nulls":4},"Voll abzugsfähige Kosten",{"$f":"F20","v":{"v":0,"d":"0.00"}},{"v":0,"d":"0.00"},{"v":0,"d":"0.00"},{"v":0,"d":"0.00"},{"v":0,"d":"0.00"},{"v":0,"d":"0.00"},{"v":0,"d":"0.00"}]
[{"$nulls":4},"Anteilig abzugsfähige Kosten",{"$f":"F36","v":{"v":0,"d":"0.00"}},{"$f":"G36","v":{"v":0,"d":"0.00"}},{"v":0,"d":"0.00"},{"v":0,"d":"0.00"},{"v":0,"d":"0.00"},{"v":0,"d":"0.00"},{"v":0,"d":"0.00"}]
[{"$nulls":3},"./.","nicht abziehbarer Anteil",{"$f":"IF(F11=\"Ja\",0,IF(F12=\"Ja\",IF((F45+F46)>1250,(F45+F46)-1250,0),F45+F46))","v":{"v":0,"d":"0.00"}},{"v":0,"d":"0.00"},{"v":0,"d":"0.00"},{"v":0,"d":"0.00"},{"v":0,"d":"0.00"},{"v":0,"d":"0.00"},{"v":0,"d":"0.00"}]
[{"$nulls":3},"=","abziehbarer Anteil",{"$f":"F45+F46-F47","v":{"v":0,"d":"0.00"}},{"v":0,"d":"0.00"},{"v":0,"d":"0.00"},{"v":0,"d":"0.00"},{"v":0,"d":"0.00"},{"v":0,"d":"0.00"},{"v":0,"d":"0.00"}]
[{"$nulls":3},"+",{"$f":"C38","v":"Aufwendungen für Arbeitsmittel"},{"$f":"F42","v":{"v":0,"d":"0.00"}},{"v":0,"d":"0.00"},{"v":0,"d":"0.00"},{"v":0,"d":"0.00"},{"v":0,"d":"0.00"},{"v":0,"d":"0.00"},{"v":0,"d":"0.00"}]
[{"$nulls":3},"=","Anzusetzende Werbungskosten",{"$f":"F48+F49","v":{"v":0,"d":"0.00"}},{"v":0,"d":"0.00"},{"v":0,"d":"0.00"},{"v":0,"d":"0.00"},{"v":0,"d":"0.00"},{"v":0,"d":"0.00"},{"v":0,"d":"0.00"}]

{"sheet":"Tabelle1","index":4,"n_rows":0,"n_cols":0,"rows_kept":0}